[Event "Paracin Open 2022"]
[Site "Paracin"]
[Date "2022.07.15"]
[Round "8.10"]
[White "Gan-Erdene, Sugar"]
[Black "Taspinar, Yanki"]
[Result "1-0"]
[ECO "E04"]
[WhiteElo "2428"]
[BlackElo "2311"]
[Annotator "ChessBase"]
[PlyCount "93"]
[EventDate "2022.07.08"]
[EventCountry "SRB"]
[SourceTitle "playchess.com"]
[Source "ChessBase"]
[SourceQuality "1"]
[TimeControl "5400+30"]

1. d4 {[%emt 0:00:04]} d5 {[%emt 0:02:07]} 2. c4 {[%emt 0:00:13]} e6 {[%emt 0:00:05]} 3. Nf3 {[%emt 0:00:17]} Nf6 {[%emt 0:00:16]} 4. g3 {[%emt 0:00:15]} dxc4 {[%emt 0:00:24]} 5. Bg2 {[%emt 0:00:09]} Nc6 {[%emt 0:00:16]} 6. O-O {[%emt 0:03:15]} Rb8 {[%emt 0:02:17]} 7. e3 {[%emt 0:01:17]} Bd7 {[%emt 0:13:48]} 8. Qe2 {[%emt 0:14:03]} b5 {[%emt 0:13:06]} 9. b3 {[%emt 0:00:19]} cxb3 {[%emt 0:06:34]} 10. axb3 {[%emt 0:00:05]} Be7 {[%emt 0:02:27]} 11. Bd2 {[%emt 0:06:55]} Ne4 {[%emt 0:09:54]} 12. Ne5 {[%emt 0:11:35]} Nxe5 {[%emt 0:01:17]} 13. Bxe4 {[%emt 0:00:05]} Bc6 {[%emt 0:01:13]} 14. Bxc6+ {[%emt 0:00:57]} Nxc6 {[%emt 0:00:06]} 15. Rc1 {[%emt 0:00:16]} Rb6 {[%emt 0:00:56]} 16. Ba5 {[%emt 0:02:44]} Nxa5 {[%emt 0:04:20]} 17. Rxa5 {[%emt 0:00:06]} Qb8 {[%emt 0:03:26]} 18. Nc3 {[%emt 0:07:52]} a6 {[%emt 0:08:51]} 19. Ne4 {[%emt 0:04:43]} Bb4 {[%emt 0:07:06]} 20. Ra2 {[%emt 0:01:02]} O-O {[%emt 0:01:38]} 21. Qc2 {[%emt 0:16:56]} h6 {[%emt 0:15:21]} 22. Qxc7 {[%emt 0:12:07]} Qxc7 {[%emt 0:00:05]} 23. Rxc7 {[%emt 0:00:04]} a5 {[%emt 0:01:52]} 24. Nc5 {[%emt 0:00:27]} Ra8 {[%emt 0:01:33]} 25. Nd7 {[%emt 0:00:51]} Rba6 {[%emt 0:03:26]} 26. Rb7 {[%emt 0:00:29]} Rc6 {[%emt 0:00:27]} 27. Rxb5 {[%emt 0:00:39]} Rc1+ {[%emt 0:00:14]} 28. Kg2 {[%emt 0:00:03]} Rac8 {[%emt 0:00:43]} 29. Ne5 {[%emt 0:00:32]} R8c2 {[%emt 0:00:35]} 30. Rxc2 {[%emt 0:00:29]} Rxc2 {[%emt 0:00:01]} 31. Rb8+ {[%emt 0:01:20]} Kh7 {[%emt 0:00:05]} 32. Nxf7 {[%emt 0:00:26]} Rb2 {[%emt 0:01:23]} 33. Ne5 {[%emt 0:00:52]} Rxb3 {[%emt 0:00:33]} 34. Nc6 {[%emt 0:00:09]} Rb2 {[%emt 0:00:31]} 35. Nxa5 {[%emt 0:00:11]} Bc3 {[%emt 0:00:03]} 36. Rxb2 {[%emt 0:00:14]} Bxb2 {[%emt 0:00:02]} 37. Kf3 {[%emt 0:00:16]} Kg6 {[%emt 0:00:04]} 38. Ke4 {[%emt 0:00:05]} Kf6 {[%emt 0:00:03]} 39. Nc4 {[%emt 0:01:10]} Bc3 {[%emt 0:00:04]} 40. Ne5 {[%emt 0:00:57]} g5 {[%emt 0:00:05]} 41. Ng4+ {[%emt 0:01:03]} Kg6 {[%emt 0:00:04]} 42. Ke5 {[%emt 0:00:33]} h5 {[%emt 0:00:22]} 43. Nf6 {[%emt 0:00:04]} Be1 {[%emt 0:00:36]} 44. Ne4 {[%emt 0:00:05]} h4 {[%emt 0:00:27]} 45. Kxe6 {[%emt 0:00:05]} h3 {[%emt 0:00:04]} 46. d5 {[%emt 0:00:06]} Kh5 {[%emt 0:00:03]} 47. Kf5 {[%emt 0:00:09]} 1-0

[Event "Paracin Open 2022"]
[Site "Paracin"]
[Date "2022.07.15"]
[Round "8.11"]
[White "Gundavaa, Bayarsaikhan"]
[Black "Tsaknakis, Zisis"]
[Result "1/2-1/2"]
[ECO "D37"]
[WhiteElo "2503"]
[BlackElo "2266"]
[Annotator "ChessBase"]
[PlyCount "108"]
[EventDate "2022.07.08"]
[EventCountry "SRB"]
[SourceTitle "playchess.com"]
[Source "ChessBase"]
[SourceQuality "1"]
[TimeControl "5400+30"]

1. d4 {[%emt 0:02:46]} d5 {[%emt 0:00:05]} 2. c4 {[%emt 0:00:31]} e6 {[%emt 0:00:02]} 3. Nf3 {[%emt 0:00:40]} Nf6 {[%emt 0:00:02]} 4. Nc3 {[%emt 0:00:07]} a6 {[%emt 0:00:03]} 5. cxd5 {[%emt 0:03:55]} exd5 {[%emt 0:00:07]} 6. Bg5 {[%emt 0:00:09]} Be6 {[%emt 0:00:06]} 7. e3 {[%emt 0:01:01]} Nbd7 {[%emt 0:00:04]} 8. Bd3 {[%emt 0:00:15]} Bd6 {[%emt 0:00:07]} 9. O-O {[%emt 0:02:39]} c6 {[%emt 0:00:02]} 10. h3 {[%emt 0:00:09]} Qc7 {[%emt 0:00:32]} 11. Qd2 {[%emt 0:00:34]} O-O {[%emt 0:00:42]} 12. Bf4 {[%emt 0:02:07]} Rfe8 {[%emt 0:00:25]} 13. Rab1 {[%emt 0:03:03]} g6 {[%emt 0:06:13]} 14. Bxd6 {[%emt 0:01:16]} Qxd6 {[%emt 0:00:03]} 15. Qc2 {[%emt 0:05:59]} Nh5 {[%emt 0:05:29]} 16. Na4 {[%emt 0:04:12]} Ng7 {[%emt 0:02:42]} 17. b4 {[%emt 0:06:11]} Bf5 {[%emt 0:02:11]} 18. Nc5 {[%emt 0:00:16]} Qc7 {[%emt 0:19:14]} 19. Rfc1 {[%emt 0:02:57]} Nb6 {[%emt 0:03:46]} 20. Nd2 {[%emt 0:15:52]} Bxd3 {[%emt 0:01:29]} 21. Qxd3 {[%emt 0:00:09]} Nf5 {[%emt 0:00:10]} 22. a4 {[%emt 0:13:28]} Nd6 {[%emt 0:01:39]} 23. Re1 {[%emt 0:00:52]} Nbc4 {[%emt 0:06:51]} 24. a5 {[%emt 0:00:55]} Nxd2 {[%emt 0:01:26]} 25. Qxd2 {[%emt 0:00:05]} Re7 {[%emt 0:01:10]} 26. Qd3 {[%emt 0:01:47]} Rae8 {[%emt 0:01:47]} 27. f3 {[%emt 0:01:44]} Nf5 {[%emt 0:14:43]} 28. e4 {[%emt 0:03:07]} Qg3 {[%emt 0:01:18]} 29. Rbd1 {[%emt 0:01:11]} f6 {[%emt 0:09:56]} 30. Qf1 {[%emt 0:07:59]} Nd6 {[%emt 0:09:52]} 31. Rd3 {[%emt 0:00:28]} Qf4 {[%emt 0:00:43]} 32. Red1 {[%emt 0:05:36]} dxe4 {[%emt 0:01:15]} 33. fxe4 {[%emt 0:00:05]} Qxf1+ {[%emt 0:01:54]} 34. Rxf1 {[%emt 0:00:13]} Nxe4 {[%emt 0:01:07]} 35. Nxe4 {[%emt 0:00:10]} Rxe4 {[%emt 0:00:02]} 36. Rxf6 {[%emt 0:00:07]} Rd8 {[%emt 0:00:52]} 37. d5 {[%emt 0:05:12]} Rxb4 {[%emt 0:00:46]} 38. d6 {[%emt 0:00:25]} Rb5 {[%emt 0:01:40]} 39. Re3 {[%emt 0:04:21]} Kg7 {[%emt 0:05:30]} 40. Rfe6 {[%emt 0:00:07]} Kh6 {[%emt 0:00:54]} 41. Ra3 {[%emt 0:04:09]} Rd7 {[%emt 0:00:45]} 42. Kh2 {[%emt 0:00:16]} Rd5 {[%emt 0:00:16]} 43. Rb3 {[%emt 0:00:09]} Rxa5 {[%emt 0:02:26]} 44. Re7 {[%emt 0:00:04]} Rxd6 {[%emt 0:00:54]} 45. Rbxb7 {[%emt 0:00:04]} Rd2 {[%emt 0:00:35]} 46. Rxh7+ {[%emt 0:00:04]} Kg5 {[%emt 0:00:01]} 47. Rb4 {[%emt 0:00:12]} Kf6 {[%emt 0:01:06]} 48. Rb6 {[%emt 0:01:32]} Rc5 {[%emt 0:00:54]} 49. Rc7 {[%emt 0:00:09]} Rd6 {[%emt 0:00:16]} 50. Rxa6 {[%emt 0:00:11]} Rc2 {[%emt 0:00:10]} 51. Ra4 {[%emt 0:00:40]} Rd5 {[%emt 0:00:32]} 52. Rg4 {[%emt 0:02:25]} Rg5 {[%emt 0:00:23]} 53. Rf7+ {[%emt 0:01:15]} Kxf7 {[%emt 0:00:08]} 54. Rxg5 {[%emt 0:00:02]} c5 {[%emt 0:00:14]} 1/2-1/2

[Event "Paracin Open 2022"]
[Site "Paracin"]
[Date "2022.07.15"]
[Round "8.12"]
[White "Ristic, Luka"]
[Black "Petrov, Nikita"]
[Result "1/2-1/2"]
[ECO "B49"]
[WhiteElo "2243"]
[BlackElo "2558"]
[Annotator "ChessBase"]
[PlyCount "85"]
[EventDate "2022.07.08"]
[EventCountry "SRB"]
[SourceTitle "playchess.com"]
[Source "ChessBase"]
[SourceQuality "1"]
[TimeControl "5400+30"]

1. e4 {[%emt 0:00:04]} c5 {[%emt 0:00:21]} 2. Nf3 {[%emt 0:00:52]} Nc6 {[%emt 0:00:11]} 3. d4 {[%emt 0:00:18]} cxd4 {[%emt 0:00:13]} 4. Nxd4 {[%emt 0:00:07]} e6 {[%emt 0:00:24]} 5. Nc3 {[%emt 0:00:49]} Qc7 {[%emt 0:00:08]} 6. Be3 {[%emt 0:00:57]} a6 {[%emt 0:00:29]} 7. a3 {[%emt 0:02:07]} b5 {[%emt 0:01:47]} 8. Nxc6 {[%emt 0:01:43]} Qxc6 {[%emt 0:01:30]} 9. Be2 {[%emt 0:01:58]} Bb7 {[%emt 0:00:18]} 10. Qd4 {[%emt 0:01:33]} h5 {[%emt 0:13:36]} 11. Bf3 {[%emt 0:09:10]} Qc7 {[%emt 0:01:36]} 12. Rd1 {[%emt 0:03:02]} Nf6 {[%emt 0:15:00]} 13. O-O {[%emt 0:11:55]} Be7 {[%emt 0:04:44]} 14. Qd2 {[%emt 0:13:12]} Rd8 {[%emt 0:03:32]} 15. e5 {[%emt 0:10:28]} Ng4 {[%emt 0:01:24]} 16. Bxb7 {[%emt 0:00:44]} Qxb7 {[%emt 0:04:49]} 17. Bf4 {[%emt 0:04:29]} h4 {[%emt 0:04:15]} 18. h3 {[%emt 0:03:53]} Nh6 {[%emt 0:00:06]} 19. Bg5 {[%emt 0:01:23]} d5 {[%emt 0:10:35]} 20. exd6 {[%emt 0:10:03]} Rxd6 {[%emt 0:00:20]} 21. Qf4 {[%emt 0:00:54]} Nf5 {[%emt 0:01:54]} 22. Bxe7 {[%emt 0:01:15]} Qxe7 {[%emt 0:01:04]} 23. Ne4 {[%emt 0:03:27]} Rxd1 {[%emt 0:02:21]} 24. Rxd1 {[%emt 0:00:02]} O-O {[%emt 0:00:19]} 25. Qd2 {[%emt 0:01:01]} Qc7 {[%emt 0:08:04]} 26. b4 {[%emt 0:02:23]} Qc6 {[%emt 0:03:47]} 27. Nc5 {[%emt 0:00:34]} Rc8 {[%emt 0:04:08]} 28. Qd7 {[%emt 0:01:17]} a5 {[%emt 0:03:04]} 29. Kf1 {[%emt 0:01:15]} axb4 {[%emt 0:01:17]} 30. axb4 {[%emt 0:00:04]} Qxd7 {[%emt 0:02:22]} 31. Rxd7 {[%emt 0:00:04]} Ra8 {[%emt 0:00:05]} 32. Ke2 {[%emt 0:01:33]} Ra1 {[%emt 0:01:35]} 33. Rd1 {[%emt 0:03:29]} Rxd1 {[%emt 0:01:22]} 34. Kxd1 {[%emt 0:00:01]} Kf8 {[%emt 0:00:19]} 35. Ke2 {[%emt 0:00:39]} Ke7 {[%emt 0:00:20]} 36. Kd3 {[%emt 0:00:34]} Kd6 {[%emt 0:02:45]} 37. c4 {[%emt 0:00:38]} Kc6 {[%emt 0:00:50]} 38. Ne4 {[%emt 0:00:58]} f6 {[%emt 0:00:08]} 39. Nc3 {[%emt 0:02:35]} bxc4+ {[%emt 0:00:21]} 40. Kxc4 {[%emt 0:00:01]} Nd6+ {[%emt 0:00:06]} 41. Kd3 {[%emt 0:00:15]} e5 {[%emt 0:00:31]} 42. Ne4 {[%emt 0:00:57]} Nc8 {[%emt 0:01:10]} 43. Nc3 {[%emt 0:09:17]} 1/2-1/2

[Event "Paracin Open 2022"]
[Site "Paracin"]
[Date "2022.07.15"]
[Round "8.13"]
[White "Kairbekova, Amina"]
[Black "Zanan, Evgeny"]
[Result "1/2-1/2"]
[ECO "B28"]
[WhiteElo "2133"]
[BlackElo "2521"]
[Annotator "ChessBase"]
[PlyCount "226"]
[EventDate "2022.07.08"]
[EventCountry "SRB"]
[SourceTitle "playchess.com"]
[Source "ChessBase"]
[SourceQuality "1"]
[TimeControl "5400+30"]

1. e4 {[%emt 0:00:04]} c5 {[%emt 0:04:34]} 2. Nf3 {[%emt 0:00:10]} a6 {[%emt 0:00:08]} 3. c3 {[%emt 0:00:24]} e6 {[%emt 0:00:31]} 4. d4 {[%emt 0:00:14]} d5 {[%emt 0:00:04]} 5. e5 {[%emt 0:00:06]} Nc6 {[%emt 0:00:12]} 6. Bd3 {[%emt 0:02:54]} Nge7 {[%emt 0:09:01]} 7. O-O {[%emt 0:07:48]} cxd4 {[%emt 0:01:12]} 8. cxd4 {[%emt 0:00:07]} Nf5 {[%emt 0:00:05]} 9. Bxf5 {[%emt 0:00:57]} exf5 {[%emt 0:00:04]} 10. Nc3 {[%emt 0:00:49]} Be6 {[%emt 0:00:09]} 11. Bg5 {[%emt 0:13:01]} Qc7 {[%emt 0:05:20]} 12. Be3 {[%emt 0:05:53]} h6 {[%emt 0:03:44]} 13. Ne1 {[%emt 0:01:53]} g5 {[%emt 0:31:20]} 14. f4 {[%emt 0:00:27]} Na5 {[%emt 0:00:04]} 15. fxg5 {[%emt 0:06:17]} Nc4 {[%emt 0:00:36]} 16. Qa4+ {[%emt 0:09:15]} Qc6 {[%emt 0:01:59]} 17. Qxc6+ {[%emt 0:02:10]} bxc6 {[%emt 0:00:04]} 18. Bc1 {[%emt 0:02:25]} c5 {[%emt 0:00:06]} 19. Nf3 {[%emt 0:09:29]} hxg5 {[%emt 0:07:25]} 20. Bxg5 {[%emt 0:02:50]} Nxb2 {[%emt 0:04:00]} 21. Rab1 {[%emt 0:01:07]} Nc4 {[%emt 0:04:21]} 22. Kh1 {[%emt 0:09:13]} Rc8 {[%emt 0:10:22]} 23. Na4 {[%emt 0:04:57]} cxd4 {[%emt 0:08:51]} 24. Nxd4 {[%emt 0:00:06]} Rg8 {[%emt 0:00:13]} 25. Bf4 {[%emt 0:02:43]} Be7 {[%emt 0:02:00]} 26. Rfd1 {[%emt 0:05:12]} Rg6 {[%emt 0:03:39]} 27. Nb6 {[%emt 0:02:56]} Nxb6 {[%emt 0:03:09]} 28. Rxb6 {[%emt 0:00:05]} Bd7 {[%emt 0:00:04]} 29. e6 {[%emt 0:03:16]} fxe6 {[%emt 0:00:20]} 30. Rxa6 {[%emt 0:00:39]} Rc4 {[%emt 0:01:03]} 31. g3 {[%emt 0:02:47]} Ra4 {[%emt 0:00:17]} 32. Rb6 {[%emt 0:00:36]} Bc5 {[%emt 0:00:34]} 33. Rb8+ {[%emt 0:00:37]} Ke7 {[%emt 0:00:01]} 34. Nf3 {[%emt 0:00:46]} Rg7 {[%emt 0:01:15]} 35. Bg5+ {[%emt 0:00:36]} Kd6 {[%emt 0:00:20]} 36. Bf4+ {[%emt 0:00:17]} Ke7 {[%emt 0:00:40]} 37. Bg5+ {[%emt 0:00:36]} Rxg5 {[%emt 0:00:38]} 38. Nxg5 {[%emt 0:00:15]} d4 {[%emt 0:00:27]} 39. Rb7 {[%emt 0:03:31]} Kd8 {[%emt 0:00:01]} 40. Nf7+ {[%emt 0:00:19]} Kc8 {[%emt 0:00:01]} 41. Rb2 {[%emt 0:00:23]} Bc6+ {[%emt 0:00:42]} 42. Kg1 {[%emt 0:00:03]} d3+ {[%emt 0:01:01]} 43. Kf1 {[%emt 0:00:05]} Bd4 {[%emt 0:00:48]} 44. Rb3 {[%emt 0:03:22]} Be4 {[%emt 0:00:15]} 45. Nd6+ {[%emt 0:00:17]} Kd7 {[%emt 0:00:17]} 46. Nb5 {[%emt 0:00:40]} Bc5 {[%emt 0:00:54]} 47. Rbxd3+ {[%emt 0:00:45]} Bxd3+ {[%emt 0:00:06]} 48. Rxd3+ {[%emt 0:00:02]} Kc6 {[%emt 0:00:45]} 49. Nc3 {[%emt 0:00:05]} Ra3 {[%emt 0:00:03]} 50. Ke2 {[%emt 0:00:37]} Bb4 {[%emt 0:00:42]} 51. Nb1 {[%emt 0:01:08]} Rxa2+ {[%emt 0:00:09]} 52. Nd2 {[%emt 0:00:04]} e5 {[%emt 0:00:22]} 53. Ke3 {[%emt 0:01:10]} e4 {[%emt 0:00:51]} 54. Nxe4 {[%emt 0:00:11]} fxe4 {[%emt 0:00:04]} 55. Kxe4 {[%emt 0:00:03]} Rxh2 {[%emt 0:00:04]} 56. Kf5 {[%emt 0:01:02]} Bd6 {[%emt 0:00:20]} 57. Ke4 {[%emt 0:00:32]} Kd7 {[%emt 0:00:12]} 58. Kf5 {[%emt 0:00:31]} Rf2+ {[%emt 0:00:08]} 59. Ke4 {[%emt 0:00:13]} Ke6 {[%emt 0:00:05]} 60. Rf3 {[%emt 0:00:03]} Ra2 {[%emt 0:00:20]} 61. Rd3 {[%emt 0:00:18]} Be5 {[%emt 0:00:25]} 62. g4 {[%emt 0:00:55]} Ra4+ {[%emt 0:00:06]} 63. Ke3 {[%emt 0:00:02]} Rxg4 {[%emt 0:00:08]} 64. Rd8 {[%emt 0:00:26]} Kf5 {[%emt 0:00:38]} 65. Re8 {[%emt 0:00:20]} Rg3+ {[%emt 0:00:13]} 66. Ke2 {[%emt 0:00:12]} Ke4 {[%emt 0:00:07]} 67. Re7 {[%emt 0:00:19]} Rg2+ {[%emt 0:00:06]} 68. Ke1 {[%emt 0:00:06]} Ra2 {[%emt 0:00:10]} 69. Re8 {[%emt 0:00:06]} Kd4 {[%emt 0:00:04]} 70. Kf1 {[%emt 0:00:39]} Bf4 {[%emt 0:00:05]} 71. Re2 {[%emt 0:00:15]} Ra3 {[%emt 0:00:03]} 72. Re8 {[%emt 0:00:50]} Be3 {[%emt 0:00:12]} 73. Kg2 {[%emt 0:01:49]} Ra2+ {[%emt 0:00:07]} 74. Kg3 {[%emt 0:00:10]} Bg5 {[%emt 0:00:17]} 75. Kg4 {[%emt 0:00:16]} Bf6 {[%emt 0:00:12]} 76. Kf5 {[%emt 0:00:39]} Rf2+ {[%emt 0:00:05]} 77. Ke6 {[%emt 0:01:16]} Be5 {[%emt 0:00:31]} 78. Rd8+ {[%emt 0:00:36]} Ke4 {[%emt 0:00:05]} 79. Rd1 {[%emt 0:00:07]} Bc3 {[%emt 0:00:11]} 80. Rc1 {[%emt 0:00:47]} Kd4 {[%emt 0:00:31]} 81. Rd1+ {[%emt 0:00:35]} Kc4 {[%emt 0:00:05]} 82. Ke7 {[%emt 0:00:26]} Kc5 {[%emt 0:00:04]} 83. Kd7 {[%emt 0:00:29]} Rf6 {[%emt 0:01:31]} 84. Ke7 {[%emt 0:00:14]} Rh6 {[%emt 0:00:36]} 85. Kd7 {[%emt 0:00:30]} Be5 {[%emt 0:00:15]} 86. Rc1+ {[%emt 0:00:19]} Kd5 {[%emt 0:00:10]} 87. Rd1+ {[%emt 0:00:05]} Ke4 {[%emt 0:00:01]} 88. Re1+ {[%emt 0:00:21]} Kf5 {[%emt 0:00:04]} 89. Rf1+ {[%emt 0:00:15]} Bf4 {[%emt 0:00:05]} 90. Rd1 {[%emt 0:00:36]} Ra6 {[%emt 0:00:24]} 91. Re1 {[%emt 0:00:36]} Rd6+ {[%emt 0:00:21]} 92. Ke7 {[%emt 0:00:18]} Rd3 {[%emt 0:00:57]} 93. Rf1 {[%emt 0:00:29]} Ke5 {[%emt 0:00:04]} 94. Re1+ {[%emt 0:00:04]} Be3 {[%emt 0:00:01]} 95. Re2 {[%emt 0:00:36]} Kf5 {[%emt 0:00:16]} 96. Kf7 {[%emt 0:00:32]} Bf4 {[%emt 0:00:44]} 97. Rf2 {[%emt 0:00:07]} Rd7+ {[%emt 0:01:42]} 98. Ke8 {[%emt 0:00:12]} Rb7 {[%emt 0:00:16]} 99. Kf8 {[%emt 0:00:18]} Ke5 {[%emt 0:00:03]} 100. Kg8 {[%emt 0:00:10]} Ra7 {[%emt 0:00:15]} 101. Rf1 {[%emt 0:00:05]} Bh6 {[%emt 0:00:59]} 102. Rf7 {[%emt 0:00:05]} Ra8+ {[%emt 0:00:03]} 103. Kh7 {[%emt 0:00:04]} Ke6 {[%emt 0:00:01]} 104. Rb7 {[%emt 0:01:20]} Be3 {[%emt 0:00:12]} 105. Kg6 {[%emt 0:01:16]} Rg8+ {[%emt 0:00:12]} 106. Rg7 {[%emt 0:00:10]} Rf8 {[%emt 0:00:09]} 107. Rb7 {[%emt 0:00:28]} Rf1 {[%emt 0:00:26]} 108. Rb4 {[%emt 0:01:45]} Rg1+ {[%emt 0:00:24]} 109. Kh5 {[%emt 0:00:19]} Kf5 {[%emt 0:00:11]} 110. Rb5+ {[%emt 0:00:20]} Kf6 {[%emt 0:00:08]} 111. Rb4 {[%emt 0:00:41]} Rg8 {[%emt 0:00:36]} 112. Kh4 {[%emt 0:00:28]} Kf5 {[%emt 0:00:04]} 113. Rb5+ {[%emt 0:00:33]} Kf4 {[%emt 0:00:07]} 1/2-1/2

[Event "Paracin Open 2022"]
[Site "Paracin"]
[Date "2022.07.15"]
[Round "8.14"]
[White "Song, Raymond"]
[Black "Erdogmus, Yagiz Kaan"]
[Result "1-0"]
[ECO "B45"]
[WhiteElo "2499"]
[BlackElo "2373"]
[Annotator "ChessBase"]
[PlyCount "81"]
[EventDate "2022.07.08"]
[EventCountry "SRB"]
[SourceTitle "playchess.com"]
[Source "ChessBase"]
[SourceQuality "1"]
[TimeControl "5400+30"]

1. e4 {[%emt 0:00:02]} c5 {[%emt 0:00:04]} 2. Nf3 {[%emt 0:00:04]} e6 {[%emt 0:00:05]} 3. d4 {[%emt 0:00:04]} cxd4 {[%emt 0:00:04]} 4. Nxd4 {[%emt 0:00:03]} Nf6 {[%emt 0:00:06]} 5. Nc3 {[%emt 0:00:06]} Nc6 {[%emt 0:00:03]} 6. Nxc6 {[%emt 0:00:04]} bxc6 {[%emt 0:00:07]} 7. e5 {[%emt 0:00:06]} Nd5 {[%emt 0:00:03]} 8. Ne4 {[%emt 0:00:05]} Bb7 {[%emt 0:00:37]} 9. Be2 {[%emt 0:01:25]} c5 {[%emt 0:01:26]} 10. O-O {[%emt 0:00:40]} Qc7 {[%emt 0:00:51]} 11. Nd6+ {[%emt 0:00:39]} Bxd6 {[%emt 0:00:02]} 12. exd6 {[%emt 0:00:07]} Qc6 {[%emt 0:00:06]} 13. f3 {[%emt 0:00:56]} c4 {[%emt 0:00:18]} 14. Qd4 {[%emt 0:00:11]} O-O {[%emt 0:00:30]} 15. Bxc4 {[%emt 0:00:33]} Qxd6 {[%emt 0:02:13]} 16. b3 {[%emt 0:00:19]} Rfc8 {[%emt 0:00:47]} 17. Bb2 {[%emt 0:01:14]} Qb6 {[%emt 0:00:31]} 18. Rf2 {[%emt 0:03:26]} Qxd4 {[%emt 0:11:03]} 19. Bxd4 {[%emt 0:00:04]} a5 {[%emt 0:02:32]} 20. Bb5 {[%emt 0:04:32]} Nb4 {[%emt 0:16:38]} 21. c3 {[%emt 0:03:34]} Nc6 {[%emt 0:00:12]} 22. Bb6 {[%emt 0:00:35]} d5 {[%emt 0:09:43]} 23. a4 {[%emt 0:03:30]} h6 {[%emt 0:17:23]} 24. Rd2 {[%emt 0:03:32]} Ne7 {[%emt 0:09:09]} 25. c4 {[%emt 0:04:33]} Bc6 {[%emt 0:00:24]} 26. Rdd1 {[%emt 0:11:41]} dxc4 {[%emt 0:01:41]} 27. bxc4 {[%emt 0:00:05]} Kf8 {[%emt 0:05:01]} 28. Rac1 {[%emt 0:01:59]} g5 {[%emt 0:01:36]} 29. Kf2 {[%emt 0:01:11]} f6 {[%emt 0:00:35]} 30. Rd6 {[%emt 0:06:17]} Kf7 {[%emt 0:02:16]} 31. Re1 {[%emt 0:00:25]} e5 {[%emt 0:02:52]} 32. c5 {[%emt 0:00:51]} Bxb5 {[%emt 0:01:42]} 33. axb5 {[%emt 0:00:02]} Nf5 {[%emt 0:02:30]} 34. Rd7+ {[%emt 0:01:18]} Kg6 {[%emt 0:01:16]} 35. Bc7 {[%emt 0:06:24]} Nd4 {[%emt 0:02:39]} 36. b6 {[%emt 0:00:25]} Rg8 {[%emt 0:00:34]} 37. b7 {[%emt 0:03:34]} Ra7 {[%emt 0:00:01]} 38. Rxd4 {[%emt 0:02:12]} Rxb7 {[%emt 0:00:17]} 39. Rd8 {[%emt 0:00:08]} Rxd8 {[%emt 0:00:50]} 40. Bxd8 {[%emt 0:00:05]} a4 {[%emt 0:00:44]} 41. Bb6 {[%emt 0:01:26]} 1-0

[Event "Paracin Open 2022"]
[Site "Paracin"]
[Date "2022.07.15"]
[Round "8.15"]
[White "Kushagra Mohan"]
[Black "Koustav Chatterjee"]
[Result "0-1"]
[ECO "C88"]
[WhiteElo "2359"]
[BlackElo "2485"]
[Annotator "ChessBase"]
[PlyCount "52"]
[EventDate "2022.07.08"]
[EventCountry "SRB"]
[SourceTitle "playchess.com"]
[Source "ChessBase"]
[SourceQuality "1"]
[TimeControl "5400+30"]

1. e4 {[%emt 0:02:12]} e5 {[%emt 0:00:03]} 2. Nf3 {[%emt 0:00:03]} Nc6 {[%emt 0:00:06]} 3. Bb5 {[%emt 0:00:11]} a6 {[%emt 0:00:51]} 4. Ba4 {[%emt 0:00:05]} Nf6 {[%emt 0:01:59]} 5. O-O {[%emt 0:00:10]} Be7 {[%emt 0:00:05]} 6. Re1 {[%emt 0:00:03]} b5 {[%emt 0:00:04]} 7. Bb3 {[%emt 0:00:03]} O-O {[%emt 0:00:06]} 8. a4 {[%emt 0:00:27]} Bb7 {[%emt 0:00:14]} 9. d3 {[%emt 0:00:26]} d6 {[%emt 0:00:08]} 10. Nbd2 {[%emt 0:00:05]} Nd7 {[%emt 0:00:07]} 11. a5 {[%emt 0:08:10]} Nb4 {[%emt 0:05:17]} 12. Nf1 {[%emt 0:02:06]} Nc5 {[%emt 0:01:30]} 13. Ne3 {[%emt 0:00:01]} Nxb3 {[%emt 0:01:33]} 14. cxb3 {[%emt 0:00:01]} Re8 {[%emt 0:11:16]} 15. Qe2 {[%emt 0:02:02]} d5 {[%emt 0:07:30]} 16. Nxe5 {[%emt 0:02:40]} dxe4 {[%emt 0:01:29]} 17. dxe4 {[%emt 0:01:35]} Bd6 {[%emt 0:00:39]} 18. f4 {[%emt 0:02:41]} f6 {[%emt 0:02:00]} 19. Nd3 {[%emt 0:00:46]} Nxd3 {[%emt 0:04:27]} 20. Qxd3 {[%emt 0:00:01]} Rxe4 {[%emt 0:00:08]} 21. Rd1 {[%emt 0:03:42]} Qe8 {[%emt 0:00:51]} 22. b4 {[%emt 0:07:05]} Bxf4 {[%emt 0:05:21]} 23. Nc2 {[%emt 0:01:08]} Bd6 {[%emt 0:06:49]} 24. Bd2 {[%emt 0:02:07]} Qh5 {[%emt 0:01:57]} 25. h3 {[%emt 0:01:03]} Re2 {[%emt 0:06:29]} 26. Ne3 {[%emt 0:01:25]} Re8 {[%emt 0:01:17]} 0-1

[Event "Paracin Open 2022"]
[Site "Paracin"]
[Date "2022.07.15"]
[Round "8.16"]
[White "Agmanov, Zhandos"]
[Black "Sapenov, Daniyal"]
[Result "1/2-1/2"]
[ECO "C78"]
[WhiteElo "2459"]
[BlackElo "2362"]
[Annotator "ChessBase"]
[PlyCount "35"]
[EventDate "2022.07.08"]
[EventCountry "SRB"]
[SourceTitle "playchess.com"]
[Source "ChessBase"]
[SourceQuality "1"]
[TimeControl "5400+30"]

1. e4 {[%emt 0:00:03]} e5 {[%emt 0:00:07]} 2. Nf3 {[%emt 0:00:03]} Nc6 {[%emt 0:00:06]} 3. Bb5 {[%emt 0:00:02]} a6 {[%emt 0:00:09]} 4. Ba4 {[%emt 0:00:01]} Nf6 {[%emt 0:00:10]} 5. O-O {[%emt 0:00:03]} b5 {[%emt 0:00:12]} 6. Bb3 {[%emt 0:00:03]} Bc5 {[%emt 0:00:06]} 7. a4 {[%emt 0:01:37]} Rb8 {[%emt 0:00:44]} 8. c3 {[%emt 0:00:34]} d6 {[%emt 0:00:20]} 9. d4 {[%emt 0:00:09]} Bb6 {[%emt 0:00:06]} 10. a5 {[%emt 0:00:06]} Ba7 {[%emt 0:00:05]} 11. Be3 {[%emt 0:00:59]} exd4 {[%emt 0:05:49]} 12. cxd4 {[%emt 0:02:12]} O-O {[%emt 0:00:24]} 13. h3 {[%emt 0:10:48]} Nxe4 {[%emt 0:17:09]} 14. Bd5 {[%emt 0:02:04]} Qe8 {[%emt 0:00:08]} 15. Re1 {[%emt 0:00:03]} Nf6 {[%emt 0:00:36]} 16. Bg5 {[%emt 0:00:53]} Nxd5 {[%emt 0:11:43]} 17. Rxe8 {[%emt 0:00:18]} Rxe8 {[%emt 0:00:04]} 18. Nc3 {[%emt 0:16:57]} 1/2-1/2